bitfinex/quotes_BTCUSD_20241123
["timestamp","ask_amount","ask_price","bid_price","bid_amount"]
[1732360644671,0.01483655,98007.0,97996.0,0.3073706]
[1732360645463,0.01483655,98007.0,98005.0,0.30741197]
[1732360645691,0.0008605,98007.0,98005.0,0.30741197]
[1732360647388,0.0008605,98007.0,97985.0,0.16940416]
[1732360651074,0.0008605,98007.0,97985.0,0.17112476]
[1732360658657,0.0475,98006.0,97985.0,0.17112476]
[1732360661573,0.0475,98006.0,97990.0,0.49412644]
[1732360663065,0.13,98005.0,97990.0,0.49412644]
[1732360663803,0.13,98005.0,97988.0,0.49412644]
[1732360664014,0.13,98005.0,97987.0,0.49412644]
[1732360664465,0.13,98005.0,97985.0,0.17112476]
[1732360664466,0.13,98005.0,97986.0,0.49412644]
[1732360664694,0.0491,98004.0,97986.0,0.49412644]
[1732360666926,0.01317605,98003.0,97986.0,0.49412644]
[1732360667174,0.0818,98005.0,97985.0,0.04372476]
[1732360667175,0.0486,98002.0,97985.0,0.5378512]
[1732360667415,0.0486,98003.0,97986.0,0.1293]
[1732360667655,0.0486,98003.0,97986.0,0.13372858]
[1732360669979,0.0469,98000.0,97986.0,0.00442858]
[1732360670437,0.0469,98000.0,97985.0,0.04372476]
[1732360671819,0.0469,98001.0,97985.0,0.04372476]
[1732360672112,0.0469,98000.0,97985.0,0.04372476]
[1732360674944,0.0469,98000.0,97936.0,0.66398959]
[1732360675179,0.0469,97998.0,97936.0,0.66398959]
[1732360675405,0.0758,97997.0,97958.0,0.0516691]
[1732360675635,0.0469,97996.0,97965.0,0.00723138]
[1732360676368,0.0469,97996.0,97965.0,0.0017204]
[1732360676838,0.0469,97996.0,97966.0,0.02231307]
[1732360678004,0.0469,97996.0,97967.0,0.1295]
[1732360680137,0.0483,97994.0,97967.0,0.1295]
[1732360683711,0.0773,97993.0,97967.0,0.1295]
[1732360683994,0.0457,97992.0,97967.0,0.1295]
[1732360687268,0.04278323,97992.0,97967.0,0.1295]
[1732360690684,0.047,97990.0,97967.0,0.1295]
[1732360692145,0.047,97990.0,97967.0,0.0816]
[1732360693204,0.047,97988.0,97966.0,0.04274479]
[1732360694245,0.047,97986.0,97966.0,0.04274479]
[1732360694683,0.0008606,97996.0,97966.0,0.04274479]
[1732360694684,0.047,97984.0,97966.0,0.04274479]
[1732360696655,0.047,97982.0,97966.0,0.04274479]
[1732360698927,0.01003,97982.0,97966.0,0.04274479]
[1732360700222,0.0752,97983.0,97966.0,0.09214479]
[1732360700437,0.0752,97983.0,97967.0,0.00955855]
[1732360702875,0.03937831,97983.0,97967.0,0.00955855]
[1732360707025,0.03937831,97983.0,97968.0,0.02231307]
[1732360710814,0.03937831,97983.0,97950.0,0.0513437]
[1732360711048,0.03937831,97983.0,97952.0,0.05172075]
[1732360711285,0.03937831,97983.0,97953.0,0.023]
[1732360711541,0.03937831,97983.0,97966.0,0.00172]
[1732360712747,0.0486,97982.0,97966.0,0.00172]
[1732360714626,0.0486,97980.0,97966.0,0.00172]
[1732360714882,0.0486,97980.0,97966.0,0.0427296]
[1732360716801,0.04603914,97980.0,97966.0,0.0427296]
[1732360718894,0.0795,97979.0,97966.0,0.0427296]
[1732360719784,0.0486,97978.0,97966.0,0.0427296]
[1732360726690,0.03753263,97978.0,97966.0,0.0427296]
[1732360727146,0.0823,97977.0,97966.0,0.0427296]
[1732360728250,0.0461,97976.0,97954.0,0.0796208]
[1732360728498,0.00054,97976.0,97955.0,0.0464]
[1732360728718,0.0008204,97983.0,97956.0,0.083]
[1732360728934,0.0008204,97983.0,97957.0,0.0464]
[1732360731515,0.1284,97982.0,97957.0,0.0464]
[1732360731753,0.0461,97980.0,97957.0,0.0464]
[1732360732816,0.0461,97978.0,97954.0,0.04260259]
[1732360735804,0.0461,97976.0,97954.0,0.04260259]
[1732360737706,0.0461,97974.0,97954.0,0.04260259]
[1732360737936,0.0008204,97983.0,97954.0,0.04260259]
[1732360737937,0.0461,97972.0,97954.0,0.04260259]
[1732360739075,0.009309,97972.0,97954.0,0.04260259]
[1732360739575,0.055259,97973.0,97954.0,0.04260259]
[1732360739793,0.055259,97973.0,97955.0,0.0464]
[1732360740225,0.04455249,97973.0,97955.0,0.0464]
[1732360742304,0.04455249,97973.0,97955.0,0.1283]
[1732360743922,0.00985424,97973.0,97955.0,0.1283]
[1732360744865,0.0464,97976.0,97955.0,0.1283]
[1732360748749,0.0464,97976.0,97955.0,0.1300204]
[1732360755344,0.0464,97976.0,97951.0,0.18922058]
[1732360755804,0.0464,97976.0,97951.0,0.23072491]
[1732360756279,0.0464,97976.0,97929.0,0.05142939]
[1732360756500,0.0464,97976.0,97932.0,0.023]
[1732360758422,0.0464,97976.0,97936.0,0.0776]
[1732360758637,0.0464,97976.0,97939.0,0.0452]
[1732360758867,0.0464,97976.0,97931.0,0.05140628]
[1732360759088,0.0464,97976.0,97932.0,0.0776]
[1732360761779,0.0464,97976.0,97933.0,0.0479]
[1732360762002,0.0471,97974.0,97937.0,0.0479]
[1732360762224,0.0471,97974.0,97940.0,0.0773]
[1732360762660,0.0471,97974.0,97941.0,0.00458061]
[1732360764459,0.0764,97975.0,97942.0,0.0474]
[1732360764887,0.0764,97975.0,97943.0,0.00458038]
[1732360767324,0.0464,97974.0,97943.0,0.00458038]
[1732360768245,0.0464,97972.0,97943.0,0.00458038]
[1732360769632,0.0464,97970.0,97944.0,0.00458204]
[1732360769861,0.0464,97968.0,97941.0,0.05152247]
[1732360770840,0.0813,97967.0,97941.0,0.05152247]
[1732360771056,0.0464,97966.0,97941.0,0.05152247]
[1732360771276,0.0464,97966.0,97942.0,0.00515225]
[1732360772434,0.2,97997.0,97943.0,0.12772084]
[1732360772703,0.1918606,98002.0,97949.0,0.023]
[1732360772910,0.1918606,98002.0,97947.0,0.0081394]
[1732360772911,0.1918606,98002.0,97953.0,0.1018]
[1732360773154,0.1918606,98002.0,97954.0,0.04892064]
[1732360773433,0.1918606,98002.0,97955.0,0.023]
[1732360773642,0.1918606,98008.0,97957.0,0.1018]
[1732360773861,0.1918606,98008.0,97959.0,0.023]
[1732360774088,0.1918606,98008.0,97960.0,0.0479]
[1732360774514,0.1918606,98008.0,97961.0,0.1018]
[1732360774784,0.1918606,98008.0,97961.0,0.0788]
[1732360775039,0.0008606,97976.0,97961.0,0.0788]
[1732360775275,0.1907733,98008.0,97961.0,0.0788]
[1732360775506,0.0464,98005.0,97961.0,0.0788]
[1732360775747,0.0813,98004.0,97961.0,0.0788]
[1732360776477,0.0813,98002.0,97961.0,0.0788]
[1732360780587,0.0813,98002.0,97962.0,0.0492]
[1732360781903,0.0812,98000.0,97962.0,0.0492]
[1732360782056,0.0463,97999.0,97962.0,0.0492]
[1732360782275,0.0812,97998.0,97962.0,0.0492]
[1732360783992,0.0471,97997.0,97962.0,0.0492]
[1732360785120,0.0471,97997.0,97963.0,0.040632]
[1732360785565,0.0471,97997.0,97966.0,0.0471]
[1732360789219,0.04694674,97997.0,97966.0,0.0471]
[1732360790629,0.04694674,97997.0,97966.0,0.08753443]
[1732360793150,0.04694674,97997.0,97967.0,0.00102056]
[1732360794567,0.0787,97996.0,97967.0,0.00102056]
[1732360794791,0.047,97995.0,97967.0,0.00102056]
[1732360795941,0.0429247,97995.0,97967.0,0.00102056]
[1732360796609,0.0429247,97995.0,97928.0,0.0017212]
[1732360796610,0.00102056,97994.0,97928.0,0.0017212]
[1732360796810,0.047,97991.0,97928.0,0.0037212]
[1732360797063,0.047,97989.0,97953.0,0.01530509]
[1732360797269,0.047,97989.0,97954.0,0.040631]
[1732360797487,0.0787,97988.0,97955.0,0.0471]
[1732360797699,0.0787,97988.0,97957.0,0.0471]
[1732360797946,0.06819,97988.0,97957.0,0.0471]
[1732360798211,0.06819,97988.0,97959.0,0.0471]
[1732360798425,0.00188056,98001.0,97959.0,0.0471]
[1732360798652,0.00102056,98000.0,97959.0,0.0471]
[1732360798878,0.00102056,98000.0,97966.0,0.0017198]
[1732360800466,0.0458,97999.0,97966.0,0.0017198]
[1732360800684,0.00102056,97998.0,97966.0,0.0017198]
[1732360800902,0.0458,97997.0,97966.0,0.0017198]
[1732360801122,0.0458,97995.0,97966.0,0.0017198]
[1732360801335,0.0458,97992.0,97966.0,0.04301347]
[1732360801544,0.00102056,97991.0,97966.0,0.04301347]
[1732360802691,0.00086,98001.0,97966.0,0.04301347]
[1732360802692,0.1249,97990.0,97966.0,0.04301347]
[1732360802911,0.00102056,97989.0,97966.0,0.04301347]
[1732360803592,0.08874156,97990.0,97967.0,0.0483]
[1732360806307,0.08023093,97990.0,97967.0,0.0483]
[1732360806767,0.08023093,97990.0,97968.0,0.00913135]
[1732360807346,0.04426093,97990.0,97968.0,0.00913135]
[1732360810471,0.05298093,97990.0,97968.0,0.00913135]
[1732360810704,0.05298093,97990.0,97969.0,0.079]
[1732360812071,0.05384103,97990.0,97969.0,0.079]
[1732360816934,0.04576796,97990.0,97970.0,0.0475]
[1732360819346,0.0008601,97990.0,97970.0,0.0475]
[1732360820453,0.0008601,97990.0,97949.0,0.05123686]
[1732360820669,0.0008601,97990.0,97944.0,0.05193327]
[1732360820880,0.00595455,97976.0,97937.0,0.05141788]
[1732360821085,0.0008601,97990.0,97938.0,0.00514179]
[1732360821541,0.0008601,97990.0,97938.0,0.01109579]
[1732360822402,0.0272801,97994.0,97939.0,0.0476]
[1732360822608,0.0272801,97994.0,97941.0,0.0476]
[1732360823463,0.023,98000.0,97943.0,0.0476]
[1732360823690,0.20086,98001.0,97948.0,0.0476]
[1732360823936,0.00086,98001.0,97951.0,0.13294697]
[1732360824129,0.00086,98001.0,97952.0,0.1295]
[1732360824352,0.00086,98001.0,97951.0,0.05104697]
[1732360824353,0.00086,98001.0,97955.0,0.1295]
[1732360824568,0.0008601,97990.0,97952.0,0.1295]
[1732360824993,0.0008601,97990.0,97953.0,0.1219]
[1732360825204,0.0008601,97990.0,97951.0,0.05104697]
[1732360825443,0.0008601,97990.0,97953.0,0.1219]
[1732360825727,0.0008601,97990.0,97952.0,0.12292053]
[1732360825939,0.0008601,97990.0,97954.0,0.1219]
[1732360826151,0.0008601,97990.0,97955.0,0.00102053]
[1732360826363,0.0008601,97990.0,97956.0,0.1219]
[1732360826783,0.00086,98001.0,97955.0,0.00102053]
[1732360826999,0.00086,98001.0,97958.0,0.0453]
[1732360827213,0.00086,98001.0,97959.0,0.0766]
[1732360827420,0.00086,98001.0,97960.0,0.0453]
[1732360827630,0.00086,98001.0,97961.0,0.0766]
[1732360827842,0.00086,98001.0,97963.0,0.0766]
[1732360828055,0.00086,98001.0,97964.0,0.0453]
[1732360828263,0.00086,98001.0,97965.0,0.0766]
[1732360828481,0.00086,98001.0,97967.0,0.1219]
[1732360828690,0.00086,98001.0,97968.0,0.1219]
[1732360828902,0.00086,98001.0,97969.0,0.0453]
[1732360829099,0.00086,98001.0,97971.0,0.0453]
[1732360829941,0.1257,98000.0,97971.0,0.0453]
[1732360830140,0.00086,98001.0,97971.0,0.0453]
[1732360830356,0.00086,98001.0,97972.0,0.0766]
[1732360830562,0.00086,98001.0,97973.0,0.05590927]
[1732360831842,0.16503,98003.0,97973.0,0.05590927]
[1732360833202,0.1109,98002.0,97973.0,0.05590927]
[1732360833420,0.07381,98002.0,97973.0,0.05590927]
[1732360833638,0.07381,98002.0,97977.0,0.0453]
[1732360837507,0.2,98001.0,97977.0,0.0453]
[1732360839195,0.19742394,98001.0,97977.0,0.0453]
[1732360840057,0.19742394,98001.0,97977.0,0.086299]
[1732360840273,0.19742394,98001.0,97978.0,0.0464]
[1732360841840,0.27123394,98002.0,97978.0,0.0464]
[1732360842686,0.23490394,98002.0,97978.0,0.0464]
[1732360843768,0.23490394,98002.0,97980.0,0.045]
[1732360843986,0.23490394,98002.0,97979.0,0.0811]
[1732360843987,0.23490394,98002.0,97981.0,0.045]
[1732360845047,0.19742394,98002.0,97982.0,0.0793]
[1732360845267,0.19742394,98002.0,97983.0,0.05723]
[1732360845482,0.19742394,98002.0,97984.0,0.0793]
[1732360845710,0.19742394,98002.0,97985.0,0.0493]
[1732360847222,0.19742394,98002.0,97986.0,0.0793]
[1732360847422,0.19742394,98002.0,97987.0,0.0493]
[1732360850234,0.32621394,98003.0,97987.0,0.0493]
[1732360850434,0.16118394,98003.0,97987.0,0.0493]
[1732360850634,0.32621394,98003.0,97987.0,0.0493]
[1732360851409,0.31201394,98003.0,97988.0,0.0815]
[1732360851619,0.2,98003.0,97953.0,0.00102055]
[1732360851837,0.14198,98004.0,97953.0,0.00102055]
[1732360852077,0.14198,98004.0,97954.0,0.01104469]
[1732360852297,0.2,98003.0,97955.0,0.00102056]
[1732360852535,0.14198,98004.0,97955.0,0.00102056]
[1732360852743,0.2,98003.0,97955.0,0.00102056]
[1732360852965,0.2,98003.0,97956.0,0.01175458]
[1732360853167,0.2,98003.0,97957.0,0.00102056]
[1732360854775,0.2,98003.0,97966.0,0.0489]
[1732360854980,0.2,98003.0,97971.0,0.0489]
[1732360855189,0.2,98003.0,97974.0,0.0489]
[1732360855400,0.2,98003.0,97978.0,0.1304]
[1732360855611,0.2,98003.0,97980.0,0.1304]
[1732360855829,0.2,98003.0,97985.0,0.0489]
[1732360856259,0.19020714,98003.0,97985.0,0.0489]
[1732360860135,0.19020714,98003.0,97986.0,0.0822]
[1732360860339,0.19020714,98003.0,97987.0,0.0496]
[1732360861456,0.19106714,98003.0,97987.0,0.0496]
[1732360865057,0.18011314,98003.0,97987.0,0.0496]
[1732360865817,0.18011314,98003.0,97989.0,0.0462]
[1732360867112,0.18011314,98003.0,97990.0,0.0819]
[1732360867355,0.18011314,98003.0,97991.0,0.0462]
[1732360868436,0.14418314,98003.0,97991.0,0.0462]
[1732360868657,0.01027565,98003.0,97991.0,0.0462]
[1732360868897,0.00759707,98003.0,97995.0,0.0462]
[1732360869107,0.03059707,98013.0,97997.0,0.0462]
[1732360869335,0.0842,98026.0,97999.0,0.0462]
[1732360869336,0.002,98025.0,97999.0,0.0462]
[1732360869766,0.002,98025.0,97999.0,0.04532249]
[1732360870022,0.002,98025.0,97999.0,0.04395956]
[1732360871376,0.023,98025.0,98000.0,0.0819]
[1732360871582,0.0822,98033.0,98000.0,0.0819]
[1732360871793,0.023,98032.0,98002.0,0.0819]
[1732360872017,0.025,98032.0,98002.0,0.0819]
[1732360872878,0.025,98032.0,98003.0,0.0462]
[1732360873080,0.025,98032.0,98004.0,0.0819]
[1732360873294,0.023,98032.0,98005.0,0.0462]
[1732360874387,0.00086,98024.0,98006.0,0.0819]
[1732360874615,0.00086,98024.0,98007.0,0.0462]
[1732360876140,0.00086,98024.0,98007.0,0.04140495]
[1732360876434,0.00086,98024.0,98008.0,0.0462]
[1732360879477,0.00086,98024.0,98010.0,0.0462]
[1732360881423,0.023,98032.0,98010.0,0.0462]
[1732360882052,0.0008604,98036.0,98012.0,0.083]
[1732360882253,0.0008604,98036.0,98015.0,0.083]
[1732360882466,0.0008604,98036.0,98016.0,0.0492]
[1732360882870,0.0008604,98036.0,98018.0,0.0492]
[1732360884460,0.0017204,98045.0,98018.0,0.0492]
[1732360884678,0.0017204,98045.0,97986.0,0.00102028]
[1732360884679,0.002,98043.0,98021.0,0.0492]
[1732360884889,0.0017204,98045.0,98021.0,0.0492]
[1732360884890,0.0017204,98045.0,98022.0,0.083]
[1732360885114,0.0017204,98045.0,97985.0,0.04227754]
[1732360885115,0.0017204,98045.0,98024.0,0.0806]
[1732360885354,0.0017204,98045.0,98025.0,0.05696]
[1732360886018,0.0008601,98036.0,98025.0,0.05696]
[1732360887467,0.0008601,98036.0,98025.0,0.0489]
[1732360887668,0.0008601,98036.0,98026.0,0.0489]
[1732360890254,0.0008601,98036.0,97982.0,0.023]
[1732360893136,0.0008601,98036.0,97984.0,0.023]
[1732360893375,0.00985398,98035.0,97992.0,0.1295]
[1732360893487,0.00985398,98035.0,97995.0,0.0806]
[1732360893710,0.00985398,98035.0,97997.0,0.0806]
[1732360893931,0.01083938,98034.0,97999.0,0.0806]
[1732360894162,0.0008601,98036.0,98001.0,0.0806]
[1732360894487,0.0008601,98036.0,98002.0,0.0489]
[1732360894682,0.0008601,98036.0,98005.0,0.0489]
[1732360894905,0.0008601,98036.0,98006.0,0.0806]
[1732360895137,0.0008601,98036.0,98009.0,0.0806]
[1732360895370,0.08621745,98038.0,98010.0,0.0489]
[1732360896033,0.08621745,98038.0,97981.0,0.15474438]
[1732360896034,0.14643965,98038.0,97981.0,0.09400061]
[1732360896254,0.01668175,98037.0,97981.0,0.09400061]
[1732360898161,0.01668175,98037.0,97982.0,0.023]
[1732360898371,0.0008602,98036.0,97982.0,0.023]
[1732360898977,0.0008602,98036.0,97983.0,0.1295]
[1732360899170,0.0008602,98036.0,97984.0,0.1295]
[1732360899372,0.02899816,98035.0,97983.0,0.0118721]
[1732360899561,0.02899816,98035.0,97992.0,0.0806]
[1732360899761,0.02899816,98035.0,97996.0,0.0489]
[1732360899992,0.02899816,98035.0,97999.0,0.0806]
[1732360900194,0.02899816,98035.0,98000.0,0.0461]
[1732360900394,0.0817,98034.0,98000.0,0.0461]
[1732360900872,0.0484,98033.0,98000.0,0.0461]
[1732360901086,0.14643965,98029.0,98000.0,0.0461]
[1732360901304,0.1301,98032.0,98000.0,0.0461]
[1732360901305,0.0817,98028.0,98000.0,0.0461]
[1732360902586,0.05217814,98028.0,98000.0,0.0461]
[1732360905241,0.05217814,98028.0,98000.0,0.08753045]
[1732360907695,0.00946034,98028.0,98000.0,0.08753045]
[1732360907937,0.0465888,98027.0,97967.0,0.17743154]
[1732360908165,0.0451,98026.0,97968.0,0.00102034]
[1732360908406,0.03113525,98025.0,97968.0,0.00102034]
[1732360909112,0.02853417,98025.0,97968.0,0.00102034]
[1732360910623,0.02853417,98025.0,97968.0,0.00274094]
[1732360910862,0.02853417,98025.0,97969.0,0.023]
[1732360911088,0.02853417,98025.0,97968.0,0.00274094]
[1732360911089,0.03663417,98026.0,97974.0,0.0479]
[1732360911322,0.03663417,98026.0,97975.0,0.08092034]
[1732360911544,0.03663417,98026.0,97977.0,0.0799]
[1732360911758,0.03663417,98026.0,97980.0,0.0479]
[1732360911972,0.03663417,98026.0,97982.0,0.0479]
[1732360912161,0.0791,98025.0,97985.0,0.0799]
[1732360912441,0.04813,98025.0,97987.0,0.0799]
[1732360912658,0.04813,98025.0,97989.0,0.0479]
[1732360912869,0.03273,98025.0,97991.0,0.0479]
[1732360913081,0.02523,98025.0,97992.0,0.01390237]
[1732360913975,0.02523,98025.0,97994.0,0.0799]
[1732360914186,0.02523,98025.0,97995.0,0.00102034]
[1732360917021,0.01136417,98026.0,97996.0,0.1278]
[1732360917237,0.01136417,98026.0,98002.0,0.0479]
[1732360917456,0.02012263,98027.0,98003.0,0.0799]
[1732360917744,0.02012263,98027.0,98004.0,0.0479]
[1732360917964,0.02012263,98027.0,98005.0,0.01278]
[1732360918173,0.2,98040.0,98005.0,0.01278]
[1732360918174,0.023,98039.0,98005.0,0.01278]
[1732360918386,0.223,98039.0,98005.0,0.01278]
[1732360918592,0.023,98039.0,98005.0,0.01278]
[1732360919917,0.023,98039.0,98006.0,0.0479]
[1732360920128,0.023,98034.0,98006.0,0.0479]
[1732360920368,0.0463,98034.0,98006.0,0.0479]
[1732360920592,0.0463,98034.0,98007.0,0.01364524]
[1732360921788,0.0463,98034.0,98008.0,0.1287]
[1732360922232,0.04367615,98035.0,98009.0,0.0479]
[1732360922451,0.04367615,98035.0,98010.0,0.0808]
[1732360922670,0.04367615,98035.0,98011.0,0.05598]
[1732360922894,0.03985615,98035.0,98011.0,0.05598]
[1732360923133,0.2,98044.0,98012.0,0.0808]
[1732360923351,0.0008598,98049.0,98011.0,0.05598]
[1732360923352,0.2017204,98045.0,98013.0,0.0479]
[1732360923562,0.0008603,98034.0,98015.0,0.0479]
[1732360924226,0.0008603,98034.0,98016.0,0.0808]
[1732360924444,0.0008603,98034.0,98017.0,0.0479]
[1732360924664,0.0008603,98034.0,98018.0,0.01287]
[1732360933858,0.0802,98040.0,98019.0,0.0458]
[1732360935032,0.0802,98040.0,98021.0,0.0458]
[1732360935479,0.0008598,98035.0,98022.0,0.00455975]
[1732360936300,0.2,98044.0,98024.0,0.0458]
[1732360936301,0.023,98044.0,98024.0,0.0458]
[1732360936554,0.023,98044.0,98026.0,0.0458]
[1732360937023,0.1313102,98045.0,98027.0,0.00455769]
[1732360938497,0.1313102,98045.0,98028.0,0.0458]
[1732360938712,0.1313102,98045.0,98029.0,0.004557]
[1732360938920,0.1313102,98045.0,98029.0,0.0176127]
[1732360940253,0.1313102,98045.0,98029.0,0.004557]
[1732360945261,0.023,98044.0,98030.0,0.0462]
[1732360945696,0.023,98044.0,98031.0,0.00455677]
[1732360946810,0.023,98044.0,98030.0,0.0462]
[1732360946811,0.023,98044.0,97987.0,0.03215869]
[1732360947027,0.02380899,98043.0,98027.0,0.0017194]
[1732360947246,0.023,98044.0,98027.0,0.0017194]
[1732360949885,0.023,98044.0,98028.0,0.0462]
[1732360952473,0.02513064,98030.0,97971.0,0.22560245]
[1732360952698,0.00958186,98030.0,97973.0,0.02024166]
[1732360952922,0.0017204,98045.0,97974.0,0.023]
[1732360953153,0.0017204,98045.0,97972.0,0.03848511]
[1732360953408,0.028836,98044.0,97973.0,0.01544927]
[1732360953649,0.028836,98044.0,97974.0,0.023]
[1732360954650,0.028836,98044.0,97975.0,0.0010202]
[1732360955556,0.028836,98044.0,97979.0,0.1286]
[1732360955763,0.03617361,98043.0,97984.0,0.0824]
[1732360955984,0.03617361,98043.0,97985.0,0.0462]
[1732360956203,0.03617361,98043.0,97990.0,0.1286]
[1732360956419,0.03672139,98042.0,97992.0,0.0462]
[1732360956666,0.03669019,98041.0,97994.0,0.0462]
[1732360956906,0.03669019,98041.0,97976.0,0.03318394]
[1732360956907,0.03669019,98041.0,97996.0,0.0462]
[1732360957120,0.03669019,98041.0,97998.0,0.0462]
[1732360957331,0.02858106,98040.0,98001.0,0.0824]
[1732360957544,0.02858106,98040.0,98003.0,0.0824]
[1732360957747,0.02858106,98040.0,97977.0,0.01973024]
[1732360957748,0.02858106,98040.0,98005.0,0.0824]
[1732360957958,0.02858106,98040.0,98009.0,0.0462]
[1732360958178,0.02858106,98040.0,98011.0,0.0462]
[1732360958390,0.0491204,98045.0,98011.0,0.0462]
[1732360959004,0.0774,98044.0,98011.0,0.0462]
[1732360960320,0.023,98043.0,98011.0,0.0462]
[1732360966748,0.0828,98043.0,98011.0,0.0462]
[1732360968264,0.07171179,98043.0,98012.0,0.0496]
[1732360968489,0.07171179,98043.0,98013.0,0.01725448]
[1732360968709,0.06083179,98043.0,98014.0,0.0496]
[1732360968921,0.06083179,98043.0,98015.0,0.01897993]
[1732360969127,0.06083179,98043.0,98016.0,0.0496]
[1732360969966,0.06083179,98043.0,98000.0,0.0010202]
[1732360969967,0.0497202,98042.0,97999.0,0.02049543]
[1732360970183,0.0828,98041.0,98000.0,0.0010202]
[1732360970392,0.0010202,98040.0,98000.0,0.0010202]
[1732360970634,0.0010202,98040.0,97975.0,0.0257392]
[1732360970872,0.0010202,98040.0,97976.0,0.00473048]
[1732360971099,0.1315,98039.0,97977.0,0.0010202]
[1732360971315,0.0010202,98038.0,97977.0,0.0010202]
[1732360971953,0.0010202,98038.0,98011.0,0.0017194]
[1732360972178,0.0828,98037.0,98011.0,0.0017194]
[1732360972417,0.0010202,98036.0,98011.0,0.0017194]
[1732360972656,0.0487,98035.0,98011.0,0.0017194]
[1732360972890,0.0010202,98034.0,98011.0,0.0017194]
[1732360973086,0.0010202,98034.0,98012.0,0.0496]
[1732360973333,0.0828,98033.0,98013.0,0.00513194]
[1732360973578,0.0010202,98032.0,98013.0,0.00513194]
[1732360977390,0.0010202,98032.0,97965.0,0.00127898]
[1732360977391,0.1315,98031.0,97965.0,0.00127898]
[1732360977600,0.08407525,98030.0,97976.0,0.04184007]
[1732360977807,0.0487,98029.0,97988.0,0.040621]
[1732360978025,0.00127525,98028.0,97988.0,0.040621]
[1732360978444,0.0828,98027.0,97988.0,0.040621]
[1732360978688,0.00127525,98026.0,97988.0,0.040621]
[1732360979340,0.0487,98025.0,97988.0,0.040621]
[1732360979575,0.0828,98027.0,97989.0,0.0496]
[1732360980008,0.00076515,98043.0,98004.0,0.002]
[1732360980243,0.05481128,98070.0,97988.0,0.18688865]
[1732360980244,0.00076515,98047.0,98007.0,0.0853]
[1732360980481,0.00076515,98057.0,98009.0,0.0833]
[1732360980729,0.00076515,98057.0,98010.0,0.04882007]
[1732360981682,0.05373235,98062.0,98012.0,0.0478]
[1732360981934,0.023,98061.0,98014.0,0.0478]
[1732360982150,0.023,98061.0,98016.0,0.0478]
[1732360982394,0.023,98061.0,98017.0,0.04882007]
[1732360982840,0.023,98056.0,98017.0,0.04882007]
[1732360983049,0.0776,98053.0,98017.0,0.04882007]
[1732360983252,0.0776,98051.0,98017.0,0.04882007]
[1732360983456,0.0772,98049.0,98018.0,0.01426501]
[1732360983690,0.0772,98049.0,98019.0,0.05052007]
[1732360983902,0.0772,98049.0,98020.0,0.0826]
[1732360984108,0.0772,98049.0,98021.0,0.01555737]
[1732360984524,0.04195746,98049.0,98021.0,0.01555737]
[1732360984978,0.04195746,98049.0,98022.0,0.0495]
[1732360985185,0.04195746,98049.0,98022.0,0.05052007]
[1732360986984,0.04195746,98049.0,98022.0,0.0495]
[1732360987205,0.04195746,98049.0,98023.0,0.01426501]
[1732360988901,0.03374746,98049.0,98023.0,0.01426501]
[1732360992510,0.0475,98048.0,98023.0,0.01426501]
[1732360993379,0.04138,98048.0,98023.0,0.01426501]
[1732360995638,0.03521,98048.0,98023.0,0.01426501]
[1732360995850,0.03521,98048.0,98024.0,0.0145373]
[1732360997306,0.02341,98048.0,98025.0,0.046]
[1732361002474,0.01884,98048.0,98025.0,0.046]
[1732361002687,0.01884,98048.0,98027.0,0.0465]
[1732361003515,0.01884,98048.0,98028.0,0.0791]
[1732361004282,0.03374746,98049.0,98029.0,0.0464]
[1732361004283,0.01579746,98049.0,98029.0,0.0464]
[1732361004492,0.01579746,98049.0,98030.0,0.0139765]
[1732361004940,0.01579746,98049.0,98031.0,0.0464]
[1732361005856,0.0238596,98057.0,98031.0,0.0464]
[1732361006021,0.0238596,98057.0,98032.0,0.01394765]
[1732361006648,0.0238596,98057.0,98033.0,0.0458]
[1732361006884,0.05373235,98069.0,98035.0,0.0458]
[1732361007031,0.0008201,98058.0,98035.0,0.0458]
[1732361007813,0.0008596,98048.0,98035.0,0.0458]
[1732361009080,0.0808,98063.0,98036.0,0.0809]
[1732361009297,0.0487,98067.0,98038.0,0.0809]
[1732361009520,0.0487,98067.0,98039.0,0.0458]
[1732361009726,0.0487,98067.0,98040.0,0.0809]
[1732361009934,0.0487,98067.0,98041.0,0.05389]
[1732361010426,0.0487,98067.0,98042.0,0.0799]
[1732361010633,0.0487,98067.0,98043.0,0.0484]
[1732361010845,0.0487,98067.0,98041.0,0.00809]
[1732361010846,0.0487,98067.0,98044.0,0.07875938]
[1732361011054,0.11533953,98072.0,98046.0,0.1283]
[1732361011271,0.0452,98072.0,98048.0,0.0484]
[1732361012160,0.05373235,98083.0,98048.0,0.0484]
[1732361012787,0.05373235,98083.0,98049.0,0.0799]
[1732361013001,0.05373235,98083.0,98050.0,0.0484]
[1732361013222,0.05373235,98083.0,98052.0,0.0484]
[1732361013843,0.05481128,98080.0,98052.0,0.0484]
[1732361014271,0.0778,98073.0,98052.0,0.0484]
[1732361014962,0.05481128,98080.0,98052.0,0.0484]
[1732361014963,0.0788,98079.0,98052.0,0.0484]
[1732361015169,0.0788,98079.0,98054.0,0.0484]
[1732361018281,0.0788,98079.0,98054.0,0.04661203]
[1732361019076,0.0788,98079.0,98049.0,0.0419142]
[1732361019077,0.001,98079.0,98055.0,0.0799]
[1732361021270,0.001,98079.0,98056.0,0.0487]
[1732361021497,0.001,98079.0,98057.0,0.01286]
[1732361021729,0.001,98079.0,98058.0,0.0487]
[1732361028194,0.1246,98073.0,98058.0,0.08891098]
[1732361028735,0.001,98079.0,98059.0,0.0168811]
[1732361032060,0.001,98079.0,98060.0,0.1278]
[1732361033026,0.001,98079.0,98059.0,0.0168811]
[1732361033027,0.001,98079.0,98061.0,0.0464]
[1732361033474,0.001,98079.0,98062.0,0.0814]
[1732361033719,0.001,98079.0,98063.0,0.0464]
[1732361035971,0.001,98079.0,98028.0,0.11867627]
[1732361036181,0.001,98079.0,98029.0,0.01581847]
[1732361036420,0.001,98079.0,98030.0,0.023]